Cogmind - Beta 13 @@@ ROGUE MODE // 2024.03.11 @ 19:09:34 Player: kauma Result: Core destroyed Performance ------------- Evolutions (0) 0 Regions Visited (2) 400 Robots Destroyed (35) 175 Value Destroyed (892) 892 Prototype IDs (2) 40 Alien Tech Used (0) 0 Bonus (0) 0 TOTAL SCORE: 1507 Bonus ------- None Cogmind --------- Core Integrity 0/250 Matter 93/300 Energy 125/125 System Corruption 0% Temperature Cool (0) Movement Core (50) Location -10/Subcaves Parts ------- > --- POWER (1) -------- Light Ion Engine > --- PROPULSION (2) --- (None) > --- UTILITY (2) ------ (None) > --- WEAPON (2) ------- (None) > --- INVENTORY (5) ---- Light Treads Aluminum Leg Aluminum Leg Assault Rifle Datajack Peak State ------------ > --- POWER ------------ Light Ion Engine > --- PROPULSION ------- Myomer Leg Myomer Leg > --- UTILITY ---------- Medium Storage Unit Seismic Detector > --- WEAPON ----------- Light Cannon Light Cannon > --- INVENTORY -------- Light Treads Aluminum Leg Heat Sink Scrap Shield Assault Rifle Light Cannon Grenade Launcher Datajack Welding Torch [Rating: 20] Favorites ----------- Power Light Ion Engine Engine Light Ion Engine Propulsion Aluminum Leg Leg Aluminum Leg Utility Seismic Detector Device Seismic Detector Storage Medium Storage Unit Protection Light Armor Plating Weapon Assault Rifle Energy Gun Medium Laser Ballistic Gun Assault Rifle Ballistic Cannon Light Cannon Launcher Grenade Launcher Build | -11 -10 -10 ------- Run | Yrd Mat Sub Slots Evolved . | . . . Power . | . . . Propulsion . | . . . Utility . | . . . Weapon . | . . . Parts Attached 34 | 7 21 6 Power 3 | 1 2 . Engine 3 | 1 2 . Core . | . . . Reactor . | . . . Propulsion 7 | 2 3 2 Treads . | . . . Leg 7 | 2 3 2 Wheel . | . . . Hover . | . . . Flight . | . . . Utility 7 | 2 5 . Device 3 | 2 1 . Storage 3 | . 3 . Processor . | . . . Hackware . | . . . Protection 1 | . 1 . Artifact . | . . . Weapon 17 | 2 11 4 Energy Gun 1 | 1 . . Energy Cannon . | . . . Ballistic Gun 6 | 1 5 . Ballistic Cannon 6 | . 3 3 Launcher 4 | . 3 1 Special Weapon . | . . . Impact Weapon . | . . . Slashing Weapon . | . . . Piercing Weapon . | . . . Special Melee Weapon . | . . . Unidentified Prototypes . | . . . Parts Lost 5 | . 1 4 Power 1 | . 1 . Propulsion 2 | . . 2 Utility 2 | . . 2 Weapon . | . . . Highest Loss Streak 4 | . 1 4 To Critical Strikes . | . . . Average Slot Usage (%) 97 | . 99 94 Engine 13 | . 13 14 Leg 27 | . 28 27 Device 13 | . 14 13 Storage 13 | . 13 13 Energy Gun 2 | . 3 . Ballistic Gun 9 | . 13 1 Ballistic Cannon 13 | . 9 22 Launcher 1 | . 1 . Naked Turns . | . . . Heaviest Build 88 | 9 88 20 Greatest Support 50 | 20 20 50 Greatest Overweight (x) 4 | . 4 . Average Overweight (x) . | . . . Largest Inventory Capacity 25 | 5 25 10 Average Capacity 8 | 5 10 9 Most Carried 10 | 5 10 10 Average Carried 6 | 3 8 9 Final Capacity 10 | 5 10 5 Final Carried 10 | 5 10 5 Class Distribution -------------------- 84% | Mutant 15% | Scavenger-Mutant Dominant Class ---------------- Mutant | -10/Materials Scavenger-Mutant | -10/Subcaves Resources | -11 -10 -10 ----------- Run | Yrd Mat Sub Matter Collected 782 | 315 333 134 Remotely . | . . . Salvage Created 834 | 143 535 156 Parts 60 | 9 38 13 Haulers Intercepted 1 | . 1 . Recyclers Shooed . | . . . Parts Field Recycled . | . . . Retrieved Matter . | . . . Parts Self-Destructed 5 | . . 5 Prevented . | . . . Kills | -11 -10 -10 ------- Run | Yrd Mat Sub Combat Hostiles Destroyed 25 | 1 17 7 Guns 9 | 1 8 . Cannons 8 | . 5 3 AOE 8 | . 4 4 Classes Destroyed 7 | 3 3 1 Worker 2 | 1 1 . Builder 2 | . 2 . Tunneler 5 | 4 1 . Hauler 1 | . 1 . Swarmer 3 | . 3 . Grunt 15 | 1 14 . Subdweller 7 | . . 7 Best Kill Streak 6 | 1 6 6 Combat Bots Only 6 | 1 4 6 Max Kills in Single Turn 1 | 1 1 1 Gunslinging . | . . . Exploded 1 | . 1 1 Melee . | . . . Uniques/NPCs Destroyed . | . . . Combat | -11 -10 -10 -------- Run | Yrd Mat Sub Hostile Shots Fired 128 | 2 76 50 Missed 36 | 1 24 11 Damage Taken 1406 | 10 568 828 Core 252 | . 46 206 Absorbed by Shields . | . . . Core Remaining (%) 100 | 100 . . Volleys Fired 84 | 15 54 15 Largest 2 | 2 2 2 Hottest 80 | 70 80 70 Shots Fired 162 | 30 102 30 Gun 95 | 30 65 . Cannon 53 | . 30 23 Launcher 14 | . 7 7 Special . | . . . Kinetic 117 | 15 79 23 Thermal 31 | 15 16 . Explosive 14 | . 7 7 Electromagnetic . | . . . Robot Hit Streak 10 | 4 6 10 Robot Miss Streak 4 | 2 4 2 Penetration Max . | . . . Secondary Targets . | . . . Shots Hit Robots 87 | 17 51 19 Core Hits 62 | 7 31 24 Critical Kills . | . . . Critical Parts Destroyed . | . . . Critical Strikes 5 | 2 2 1 Burn 3 | 2 1 . Blast 2 | . 1 1 Melee Attacks . | . . . Impact . | . . . Slashing . | . . . Piercing . | . . . Sneak Attacks . | . . . Combat Hostiles . | . . . Follow-up Attacks . | . . . Damage Inflicted 1961 | 206 953 802 Guns 631 | 206 425 . Cannons 471 | . 224 247 Explosions 827 | . 304 523 Melee . | . . . Ramming 32 | . . 32 Kinetic 903 | 131 525 247 Thermal 199 | 75 124 . Explosive 827 | . 304 523 Electromagnetic . | . . . Impact . | . . . Slashing . | . . . Piercing . | . . . Highest Corruption . | . . . Average Corruption . | . . . Corruption Purged . | . . . Corruption Blocked . | . . . Overload Shots . | . . . Overflow Damage 10 | . 10 . Projectiles . | . . . Explosions 10 | . 10 . Melee . | . . . Knockbacks 6 | . 1 5 Impact . | . . . Kinetic 6 | . 1 5 Secondary . | . . . Self-Inflicted Damage 42 | . 38 4 Shots 1 | . 1 . Rammed 3 | . . 3 Targets Rammed 22 | . . 22 Kicked 19 | . . 19 Crushed . | . . . Highest Temperature 133 | 24 133 . Average Temperature 27 | 9 35 . Received Heat Transfer 258 | 6 225 27 Siege Activations . | . . . Robots Corrupted . | . . . Combat Hostiles . | . . . Parts Fried . | . . . Impact Corruptions . | . . . Robots Melted . | . . . Combat Hostiles . | . . . Parts Melted 1 | . 1 . Heat Transferred 814 | 370 444 . Parts Sabotaged . | . . . Parts Stolen . | . . . Parts Stripped . | . . . Power Chain Reactions . | . . . Alert | -11 -10 -10 ------- Run | Yrd Mat Sub Peak Influence 299 | 25 299 . Initial 16 | . 16 . Average 77 | 11 129 . Maximum Alert Level 1 | . 1 . Low Security (%) 90 | 100 82 . Level 1 9 | . 17 . Level 2 . | . . . Level 3 . | . . . Level 4 . | . . . Level 5 . | . . . High Security . | . . . Max Security . | . . . Squads Dispatched 4 | . 4 . Investigation 4 | . 4 . Extermination . | . . . Reinforcement . | . . . Assault . | . . . Garrison . | . . . Intercept . | . . . Searches Triggered . | . . . Construction Impeded . | . . . Haulers Reinforced . | . . . Active Scanning Responses . | . . . Cargo Convoy Interrupts . | . . . Stealth | -11 -10 -10 --------- Run | Yrd Mat Sub Distress Signals . | . . . Communications Jammed . | . . . Distress Signals . | . . . Times Spotted 28 | 1 19 8 Peak Tracking Total 3 | 1 3 3 Tactical Retreats . | . . . Traps | -11 -10 -10 ------- Run | Yrd Mat Sub Traps Triggered . | . . . Indirectly . | . . . Trap Hack Attempts . | . . . Triggered . | . . . Disarmed . | . . . Reprogrammed . | . . . Reused . | . . . Traps Extracted . | . . . Installed . | . . . Triggered . | . . . Machines | -11 -10 -10 ---------- Run | Yrd Mat Sub Machines Disabled 2 | . 2 . Max in Single Turn 1 | . 1 . Machines Repaired . | . . . Machines Dismantled . | . . . Machines Sabotaged . | . . . Overloaded Fab Kills . | . . . Hacking | -11 -10 -10 --------- Run | Yrd Mat Sub Machines Accessed 6 | . 6 . Terminals 6 | . 6 . Fabricators . | . . . Repair Stations . | . . . Recycling Units . | . . . Scanalyzers . | . . . Garrison Access . | . . . Total Hacks 21 | . 21 . Successful 14 | . 14 . Failed 7 | . 7 . Catastrophic 3 | . 3 . Database Lockouts . | . . . Manual 1 | . 1 . Terminals 21 | . 21 . Fabricators . | . . . Repair Stations . | . . . Recycling Units . | . . . Scanalyzers . | . . . Garrison Access . | . . . Terminal Hacks 14 | . 14 . Record 5 | . 5 . Robot Analysis 1 | . 1 . Prototype ID Bank 1 | . 1 . Branch Access Points 1 | . 1 . Alert Level 4 | . 4 . Surveillance Status 1 | . 1 . Transport Status 1 | . 1 . Fabricator Hacks . | . . . Repair Station Hacks . | . . . Recycling Unit Hacks . | . . . Scanalyzer . | . . . Garrison Access Hacks . | . . . Unauthorized Hacks . | . . . Terminals . | . . . Fabricators . | . . . Repair Stations . | . . . Recycling Units . | . . . Scanalyzers . | . . . Garrison Access . | . . . Data Cores Recovered . | . . . Used . | . . . Hacking Detections 6 | . 6 . Full Trace Events 5 | . 5 . Feedback Events . | . . . Feedback Blocked . | . . . Robot Schematics Acquired . | . . . Robots Built . | . . . Authchips . | . . . Time . | . . . Total Robot Build Rating . | . . . Part Schematics Acquired . | . . . Parts Built . | . . . Authchips . | . . . Time . | . . . Total Part Build Rating . | . . . Parts Repaired . | . . . Time . | . . . Parts Recycled . | . . . Recycled Matter . | . . . Retrieved Matter . | . . . Retrieved Components . | . . . Parts Scanalyzed . | . . . Part Schematics Acquired . | . . . Parts Damaged . | . . . Bothacking | -11 -10 -10 ------------ Run | Yrd Mat Sub Used RIF Installer . | . . . Robots Hacked . | . . . Non-combat . | . . . Combat . | . . . Robot Hacks Applied . | . . . Relay Couplers Released . | . . . Fabnet Peak Effective % . | . . . Robots Rewired . | . . . Allies Hacked . | . . . Hacks Repelled . | . . . Allies | -11 -10 -10 -------- Run | Yrd Mat Sub Total Allies . | . . . Largest Group . | . . . Highest-Rated Group . | . . . Highest-Rated Ally . | . . . Total Orders . | . . . Ally Attacks . | . . . Total Damage . | . . . Kills . | . . . Allies Corrupted . | . . . Allies Melted . | . . . Intel | -11 -10 -10 ------- Run | Yrd Mat Sub Robot Analysis Total 1 | . 1 . Derelict Logs Recovered . | . . . Drone Launches . | . . . Drone Recoveries . | . . . Exploration | -11 -10 -10 ------------- Run | Yrd Mat Sub Turns Passed 2239 | 799 999 441 Spaces Moved 970 | 276 435 259 Core 16 | 16 . . Treads . | . . . Legs 954 | 260 435 259 Wheels . | . . . Hover . | . . . Flight . | . . . Fastest Speed 50 | 50 120 120 Average Speed 134 | 115 155 120 Slowest Speed 400 | 120 400 120 Overloaded Moves . | . . . Propulsion Burnouts . | . . . Robots Hopped . | . . . Cave-ins Triggered . | . . . Exploration Rate (%) 26 | 17 50 13 Regions Visited 2 Branch Regions 1 Pre-discovered Areas . | . . . Known Exits Taken . | . . . Unknown Exits Taken 2 | 1 1 . Scrap Searched . | . . . Spaces Dug . | . . . Terrain Destroyed 61 | . 37 24 Melee . | . . . Projectile . | . . . AOE 61 | . 37 24 Terrain Rammed . | . . . Walls Destroyed . | . . . Machines Disabled . | . . . Actions | -11 -10 -10 --------- Run | Yrd Mat Sub Total 1732 | 722 654 356 Wait 585 | 419 120 46 Move 968 | 275 434 259 Hop . | . . . Pick Up 19 | 6 11 2 Fast Attach 12 | 6 6 . Attach 1 | 1 . . Detach 1 | . . 1 Swap 21 | . 15 6 Drop 20 | . 14 6 Fire 84 | 15 54 15 Melee . | . . . Ram 2 | . . 2 Kick 19 | . . 19 Crush . | . . . Escape Stasis . | . . . Rewire . | . . . Trap . | . . . Miscellaneous . | . . . Route ------- -11/Scrapyard -10/Materials (discovered 4 exits: [*Mat] / *Min x2 / [*Sub]) -10/Subcaves (discovered 1 exit: [*Mat]) History --------- Turn | Location | Event 2 | -11/Scrapyard | Met Revision 17 73 | -11/Scrapyard | Discovered new exit (range 8) 800 | -11/Scrapyard | Entered Materials 801 | -10/Materials | Build established: Mutant 1017 | -10/Materials | Discovered new exit (range 15) 1027 | -10/Materials | Identified exit to Mines 1494 | -10/Materials | Discovered new exit (range 15) 1738 | -10/Materials | Discovered new exit (range 7) 1799 | -10/Materials | Entered Subcaves 1985 | -10/Subcaves | Discovered new exit (range 14) 2061 | -10/Subcaves | Ambushed by swarm of Subdwellers 2159 | -10/Subcaves | Core integrity fell below 50% 2180 | -10/Subcaves | Build established: Scavenger-Mutant 2228 | -10/Subcaves | Core integrity fell below 20% 2240 | -10/Subcaves | Core destroyed Last Messages --------------- Dropped Lgt. Cannon. Kicked GB-4H2(R). Kicked GB-4H2(R) out of the way. Med. Storage Unit destroyed. Kicked GB-4H2(R). Kicked GB-4H2(R) out of the way. Kicked GB-4H2(R). Kicked GB-4H2(R) out of the way. Kicked GB-4H2(R). Kicked GB-4H2(R) out of the way. Kicked GB-4H2(R). Kicked GB-4H2(R) out of the way. Seismic Detector destroyed. Kicked GB-4H2(R). Myomer Leg destroyed. Kicked GB-4H2(R) out of the way. Kicked GB-4H2(R). Kicked GB-4H2(R) out of the way. Myomer Leg destroyed. Slammed into GB-4H2(R). Map ----- +----------------------------------------------------+ | ?????????????????????????????????????????????????? | | ?????????????????????????????????????????????????? | | ??????????####???????????????????????????????????? | | ?????###### ##??????????????????????????????????? | | ?????# #?####?????????????????????????????? | | ?????# ## ##????????????????????????????? | | ??????# #????????????????????????????? | | ???????# ?????????????????????????????? | | ????????# ???????????????????????????????? | | ????????# #????????????????????????????????? | | ????????# #?????????????????????????????????? | | ???????## ##????????????????????????????????? | | ?????### ##???????????????????????????????? | | ????## # ## #######?????????????????????????? | | ##??# ## #?????????????????????????? | | # #?# ### ] #?????????????????????????? | | # ## ##?#### * ##?????????????????????????? | | # # ##?????## #??????????????????????????? | | ?# ##???????## ##?????????????????????????? | | ?# ##?????????# ##????????????????????????? | | ## ##????##### ##???????????????????????? | | # #????# # ## #???????????????????????? | | ### ##????# ## #???????????????????????? | | ?## #????# ## = # ##???????????????????????? | | ?# ##???#???## !#####??????????????????????? | | ?##### #??##???##![ ## @##?????????????????????? | | ?????# ### ????# ] R #?????????????????????? | | ????##! ## ?????#;] #?????????????????????? | | ???##= # #?????##|! ##?????????????????????? | | ???# # ##???##]] ##??????????????????????? | | ??# # #???# #???????????????????????? | | #?# ##### #???????????????????????? | | ?# ##???????????????????????? | | ?# ;#####????????????????????????? | | ### # ##????????????????????????????? | | ### ## ####??????????????????????????? | | ?## ### ######?????????????????????? | | ??# ##### ##??######????????????? | | ??## ##### ### #### ####?????????? | | ???# ######?## ## #?####????? | | #### #?????## ### ##???? | | ## #??????## ## #???? | | #???????# #### #???? | | ##??????####??##### ### ###???? | | #????????????????###?## ##?????? | | #?????????????????????####??????? | | ##???????????????????????????????? | | ####????????????????????????????????? | | < ##???????????????????????????????????? | | [ #???????????????????????????????????? | +----------------------------------------------------+ Best States ------------- Heat Dissipation 25 Energy Generation 10 Energy Capacity 250 Matter Stores 300 Matter Capacity 300 Sight Range 16 Terrain Scan Density 10 Armor Coverage 150 Evasion (%) 55 Item Schematics ----------------- None Robot Schematics ------------------ None Fabricated ------------ Nothing Alien Tech Used ----------------- None Achievements -------------- Oops Challenges ------------ None Game ------ Seed AdvancedCentriumShifter Manual? 0 Play Time 00:22:04 Cumulative 3.2 hours Start 2024.03.11 @ 18:44:57 End 2024.03.11 @ 19:09:34 Sessions 1 Manual Loads 0 Difficulty Rogue Special Mode None Game No. 3 Rogue 3 Adventurer 0 Explorer 0 Win Type - Total 0 Types 0/0/0/0/0/0/0/0/0 Lore% 9 Gallery% 6 Achievement% 8 Wizard Run 0 Options --------- Layout 2 ASCII 0 Keyboard 0 Movement Mouse Keybinds 0 Fullscreen 1 Font 24/Smallcaps Map View 50x44 Zoom Use 0% Tactical HUD 0 Map Filters NONE Filters NONE Steam 1 RUN: a11027f8-d590-4cca-8c95-1203a5674a09